Cogmind - Beta 14 @@@ ROGUE MODE // 2024.11.14 @ 20:15:12 Player: 7604 Result: Destroyed by P-60 Hacker with Shock Rifle Performance ------------- Evolutions (2) 1000 Regions Visited (6) 1200 Robots Destroyed (77) 385 Value Destroyed (2440) 2440 Prototype IDs (28) 560 Alien Tech Used (0) 0 Bonus (708) 708 TOTAL SCORE: 6293 Bonus ------- High Alert Combat Kills 89 Follower Combat Kills 119 Entered Garrisons 200 Aligned with FarCom 300 Cogmind --------- Core Integrity 0/550 Matter 241/300 Energy 43/160 System Corruption 19% Temperature Warm (144) Movement Treading (465) Ox4 Location -8/Garrison Parts ------- > --- POWER (1) -------- Light Nuclear Core > --- PROPULSION (3) --- Advanced Treads > --- UTILITY (5) ------ Huge Storage Unit Light Armor Plating Hardened Light Armor Plating Hacking Suite > --- WEAPON (2) ------- Heavy Ion Cannon > --- INVENTORY (25) --- Light Ion Engine Small Storage Unit Medium Storage Unit Advanced Weight Redist. System Machine Analyzer Seismic Detector Modified TNC Reaction Control System System Shield Relay Coupler [Sentry] (23) Relay Coupler [Hunter] (18) Relay Coupler [Hunter] (17) Heavy EM Shotgun Heavy EM Shotgun Heavy EM Shotgun Heavy Particle Gun Grenade Launcher Axe Peak State ------------ > --- POWER ------------ Light Nuclear Core > --- PROPULSION ------- Medium Treads Medium Treads Medium Treads > --- UTILITY ---------- Advanced Heat Sink Huge Storage Unit Hardened Medium Armor Plating Hardened Medium Armor Plating Hacking Suite > --- WEAPON ----------- Heavy EM Shotgun Heavy EM Shotgun > --- INVENTORY -------- Light Ion Engine Light Nuclear Core Advanced Treads Small Storage Unit Medium Storage Unit Advanced Weight Redist. System Machine Analyzer Seismic Detector Modified TNC Reaction Control System Light Armor Plating Light Armor Plating Hardened Light Armor Plating System Shield Relay Coupler [Sentry] Relay Coupler [Hunter] Relay Coupler [Hunter] Heavy EM Shotgun Heavy Particle Gun Heavy Particle Gun Heavy Particle Gun Heavy Ion Cannon Grenade Launcher Axe [Rating: 45] Favorites ----------- Power Light Nuclear Core Engine Ion Engine Power Core Light Nuclear Core Propulsion Medium Treads Treads Medium Treads Utility Huge Storage Unit Device Improved Heat Sink Storage Huge Storage Unit Hackware Hacking Suite Protection Hardened Medium Armor Plating Weapon Heavy EM Shotgun Energy Gun Heavy EM Shotgun Energy Cannon Heavy Ion Cannon Ballistic Gun Light Assault Rifle Build | -11 -10 -10 -10 -9 -8 -8 ------- Run | Yrd Mat Min Exi Min Mat Gar Slots Evolved 4 | . . . . . 4 . Power . | . . . . . . . Propulsion 1 | . . . . . 1 . Utility 3 | . . . . . 3 . Weapon . | . . . . . . . Parts Attached 72 | 6 13 3 . . 41 9 Power 7 | 1 . 1 . . 4 1 Engine 2 | 1 . . . . 1 . Core 5 | . . 1 . . 3 1 Reactor . | . . . . . . . Propulsion 16 | 2 6 . . . 7 1 Treads 16 | 2 6 . . . 7 1 Leg . | . . . . . . . Wheel . | . . . . . . . Hover . | . . . . . . . Flight . | . . . . . . . Utility 23 | 1 4 1 . . 13 4 Device 7 | . 2 1 . . 4 . Storage 3 | 1 2 . . . . . Processor . | . . . . . . . Hackware 1 | . . . . . . 1 Protection 12 | . . . . . 9 3 Artifact . | . . . . . . . Weapon 26 | 2 3 1 . . 17 3 Energy Gun 18 | 1 2 1 . . 12 2 Energy Cannon 5 | . . . . . 4 1 Ballistic Gun 3 | 1 1 . . . 1 . Ballistic Cannon . | . . . . . . . Launcher . | . . . . . . . Special Weapon . | . . . . . . . Impact Weapon . | . . . . . . . Slashing Weapon . | . . . . . . . Piercing Weapon . | . . . . . . . Special Melee Weapon . | . . . . . . . Unidentified Prototypes 4 | . . . . . 4 . Parts Lost 16 | . 2 . . . 5 9 Power 2 | . . . . . 1 1 Propulsion 5 | . 1 . . . 1 3 Utility 6 | . 1 . . . 1 4 Weapon 3 | . . . . . 2 1 Highest Loss Streak 9 | . 1 . . . 3 9 To Critical Strikes . | . . . . . . . Average Slot Usage (%) 99 | . 98 100 100 100 99 96 Engine 3 | . 14 2 . . . . Core 8 | . . 11 14 14 9 8 Treads 27 | . 27 28 28 28 27 25 Device 13 | . 12 14 14 14 14 8 Storage 11 | . 14 14 14 14 9 9 Protection 9 | . . . . . 21 18 Energy Gun 20 | . 22 28 28 28 14 17 Energy Cannon 1 | . . . . . 3 . Ballistic Gun 1 | . 5 . . . . . Peak Build Rating 45 | 6 13 18 19 18 44 45 Average Rating 26 | 4 11 16 18 18 39 42 On Entrance 16 | . 6 13 18 18 18 42 Naked Turns . | . . . . . . . Heaviest Build 116 | 13 92 92 92 92 116 115 Greatest Support 84 | 40 46 46 46 46 84 84 Greatest Overweight (x) 3 | 1 3 1 1 1 1 1 Average Overweight (x) . | . . 1 1 1 1 1 Largest Inventory Capacity 25 | 8 25 25 25 25 25 25 Average Capacity 23 | 7 20 25 25 25 25 25 Most Carried 25 | 2 17 23 24 25 25 24 Average Carried 20 | 1 12 19 23 24 23 21 Final Capacity 25 | 8 25 25 25 25 25 25 Final Carried 25 | 2 17 23 24 25 21 18 Class Distribution -------------------- 74% | Mutant 25% | Scavenger-Mutant Dominant Class ---------------- Mutant | -10/Materials Mutant | -10/Mines Scavenger-Mutant | -10/Exiles Scavenger-Mutant | -9/Mines Mutant | -8/Materials Mutant | -8/Garrison Resources | -11 -10 -10 -10 -9 -8 -8 ----------- Run | Yrd Mat Min Exi Min Mat Gar Matter Collected 995 | 221 200 30 . . 497 47 Remotely . | . . . . . . . Salvage Created 2886 | . 664 49 . 40 1841 292 Parts 179 | . 42 3 . 4 101 29 Haulers Intercepted 4 | . . . . . 4 . Recyclers Shooed 1 | . . . . . 1 . Parts Field Recycled . | . . . . . . . Retrieved Matter . | . . . . . . . Parts Self-Destructed . | . . . . . . . Prevented . | . . . . . . . Kills | -11 -10 -10 -10 -9 -8 -8 ------- Run | Yrd Mat Min Exi Min Mat Gar Combat Hostiles Destroyed 58 | . 15 2 . 3 27 11 Guns 46 | . 14 1 . 3 20 8 Cannons 5 | . . . . . 4 1 AOE 5 | . . 1 . . 2 2 Classes Destroyed 13 | . 5 . . . 7 1 Worker 2 | . 1 . . . 1 . Builder 2 | . . . . . 2 . Hauler 4 | . . . . . 4 . Recycler 2 | . 1 . . . 1 . Operator 2 | . . . . . 2 . Watcher 7 | . 3 . . . 4 . Swarmer 17 | . 3 . . 3 4 7 Grunt 28 | . 12 2 . . 13 1 Brawler 1 | . . . . . 1 . Duelist 1 | . . . . . 1 . Sentry 7 | . . . . . 7 . Programmer 3 | . . . . . . 3 Heavy 1 | . . . . . 1 . Best Kill Streak 5 | . 4 1 . 3 5 4 Combat Bots Only 4 | . 3 1 . 3 3 4 Max Kills in Single Turn 3 | . 2 1 . 1 2 3 Gunslinging 1 | . 1 . . . . . Exploded 2 | . . 1 . . 1 2 Melee . | . . . . . . . Uniques/NPCs Destroyed . | . . . . . . . Combat | -11 -10 -10 -10 -9 -8 -8 -------- Run | Yrd Mat Min Exi Min Mat Gar Hostile Shots Fired 355 | . 90 12 . 8 113 132 Missed 103 | . 30 4 . 1 39 29 Damage Taken 4001 | . 731 106 . 59 1551 1554 Core 740 | . 147 17 . 17 147 412 Absorbed by Shields . | . . . . . . . Regen/Repaired (Parts) 176 | . 102 . . . 74 . Core Remaining (%) 63 | 100 . . . 27 . . Volleys Fired 197 | . 64 6 . 7 91 29 Largest 2 | . 2 2 . 2 2 2 Hottest 130 | . 115 121 . 121 130 110 Shots Fired 385 | . 126 12 . 14 183 50 Gun 346 | . 126 12 . 14 149 45 Cannon 39 | . . . . . 34 5 Launcher . | . . . . . . . Special . | . . . . . . . Kinetic 46 | . 46 . . . . . Thermal 219 | . 80 12 . 14 90 23 Explosive . | . . . . . . . Electromagnetic 120 | . . . . . 93 27 Robot Hit Streak 15 | . 9 3 . 4 15 12 Robot Miss Streak 6 | . 3 1 . 4 6 4 Penetration Max . | . . . . . . . Secondary Targets 6 | . 4 . . . 2 . Max Gunslinging Chain 1 | . 1 . . . 1 . Shots Hit Robots 269 | . 84 8 . 8 142 27 Core Hits 127 | . 34 1 . 3 71 18 Critical Kills . | . . . . . . . Critical Parts Destroyed . | . . . . . . . Critical Strikes 15 | . 9 2 . 2 2 . Burn 15 | . 9 2 . 2 2 . Melee Attacks . | . . . . . . . Impact . | . . . . . . . Slashing . | . . . . . . . Piercing . | . . . . . . . Sneak Attacks . | . . . . . . . Combat Hostiles . | . . . . . . . Follow-up Attacks . | . . . . . . . Damage Inflicted 5327 | . 1016 122 . 123 3152 914 Guns 3961 | . 999 116 . 123 2173 550 Cannons 658 | . . . . . 527 131 Explosions 553 | . . . . . 320 233 Melee . | . . . . . . . Ramming 155 | . 17 6 . . 132 . Kinetic 237 | . 237 . . . . . Thermal 3181 | . 762 116 . 123 1559 621 Explosive . | . . . . . . . Electromagnetic 1754 | . . . . . 1461 293 Impact . | . . . . . . . Slashing . | . . . . . . . Piercing . | . . . . . . . Highest Corruption 19 | . . . . . 5 19 Average Corruption 4 | . . . . . 4 5 Corruption Purged . | . . . . . . . Corruption Blocked . | . . . . . . . Effects 66 | . . . . . 47 19 Message Errors 23 | . . . . . 18 5 Matter Fused 21 | . . . . . 14 7 Heat Flow Errors 5 | . . . . . 4 1 Energy Discharges 3 | . . . . . 3 . Parts Rejected 1 | . . . . . . 1 Data Loss (minor) 4 | . . . . . 2 2 Data Loss (major) 1 | . . . . . . 1 Misfires 4 | . . . . . 3 1 Alerts 2 | . . . . . 2 . Weapon Failures 2 | . . . . . 1 1 Overload Shots . | . . . . . . . Overflow Damage 29 | . . . . . 29 . Projectiles 8 | . . . . . 8 . Explosions 15 | . . . . . 15 . Melee 6 | . . . . . 6 . Knockbacks 1 | . . . . . 1 . Impact 1 | . . . . . 1 . Kinetic . | . . . . . . . Secondary . | . . . . . . . Self-Inflicted Damage 221 | . . . . . 139 82 Shots 5 | . . . . . 3 2 Rammed 18 | . 3 1 . . 14 . Targets Rammed 20 | . 4 1 . . 15 . Kicked . | . . . . . . . Crushed 2 | . 1 . . . 1 . Highest Temperature 361 | . 306 57 . 96 361 149 Average Temperature 72 | . 69 25 . 43 84 36 Received Heat Transfer 990 | . 435 60 . . 495 . Effects 1 | . . . . . 1 . Energy Bleed 1 | . . . . . 1 . Siege Activations . | . . . . . . . Robots Corrupted 1 | . . . . . 1 . Combat Hostiles 1 | . . . . . 1 . Parts Fried 14 | . . . . . 13 1 Impact Corruptions 1 | . . . . . 1 . Robots Melted 1 | . 1 . . . . . Combat Hostiles 1 | . 1 . . . . . Parts Melted 16 | . 7 1 . 1 6 1 Heat Transferred 7360 | . 2775 444 . 444 2792 905 Parts Sabotaged . | . . . . . . . Parts Stolen . | . . . . . . . Parts Stripped . | . . . . . . . Power Chain Reactions 8 | . . . . . 5 3 Alert | -11 -10 -10 -10 -9 -8 -8 ------- Run | Yrd Mat Min Exi Min Mat Gar Peak Influence 465 | . 276 127 . 73 465 460 Initial 198 | . . . . . 27 198 Average 131 | . 100 22 . 63 170 344 Maximum Alert Level 2 | . 1 . . . 2 2 Low Security (%) 76 | 100 91 100 . 100 66 8 Level 1 19 | . 8 . . . 31 55 Level 2 3 | . . . . . 2 36 Level 3 . | . . . . . . . Level 4 . | . . . . . . . Level 5 . | . . . . . . . High Security . | . . . . . . . Max Security . | . . . . . . . Squads Dispatched 7 | . 4 . . . 3 . Investigation 2 | . 1 . . . 1 . Extermination . | . . . . . . . Reinforcement 5 | . 3 . . . 2 . Assault . | . . . . . . . Garrison . | . . . . . . . Intercept . | . . . . . . . Searches Triggered . | . . . . . . . Construction Impeded . | . . . . . . . Haulers Reinforced . | . . . . . . . Active Scanning Responses . | . . . . . . . Cargo Convoy Interrupts . | . . . . . . . Stealth | -11 -10 -10 -10 -9 -8 -8 --------- Run | Yrd Mat Min Exi Min Mat Gar Distress Signals 6 | . 3 . . . 3 . Communications Jammed . | . . . . . . . Distress Signals . | . . . . . . . Times Spotted 108 | . 30 9 . 4 52 13 Peak Tracking Total 5 | . 5 3 . 4 5 5 Tactical Retreats 11 | . 1 . . . 10 . Traps | -11 -10 -10 -10 -9 -8 -8 ------- Run | Yrd Mat Min Exi Min Mat Gar Traps Triggered 3 | . 1 . . . 1 1 Indirectly . | . . . . . . . Trap Hack Attempts . | . . . . . . . Triggered . | . . . . . . . Disarmed . | . . . . . . . Reprogrammed . | . . . . . . . Reused . | . . . . . . . Traps Extracted . | . . . . . . . Installed . | . . . . . . . Triggered 1 | . . 1 . . . . Machines | -11 -10 -10 -10 -9 -8 -8 ---------- Run | Yrd Mat Min Exi Min Mat Gar Machines Disabled 4 | . 1 2 . . . 1 Max in Single Turn 1 | . 1 . . . . 1 Garrison Relay 1 | . . . . . . 1 Machines Repaired . | . . . . . . . Machines Dismantled . | . . . . . . . Machines Sabotaged . | . . . . . . . Overloaded Fab Kills . | . . . . . . . Hacking | -11 -10 -10 -10 -9 -8 -8 --------- Run | Yrd Mat Min Exi Min Mat Gar Machines Accessed 23 | . 8 . 2 . 12 1 Terminals 14 | . 5 . . . 8 1 Fabricators . | . . . . . . . Repair Stations 2 | . 1 . . . 1 . Recycling Units 4 | . 2 . . . 2 . Scanalyzers . | . . . . . . . Garrison Access 1 | . . . . . 1 . Total Hacks 70 | . 28 . 2 . 38 2 Successful 39 | . 18 . 2 . 19 . Failed 30 | . 10 . . . 18 2 Catastrophic 5 | . 1 . . . 4 . Database Lockouts 1 | . . . . . 1 . Manual 42 | . 20 . 1 . 19 2 Terminals 48 | . 19 . . . 27 2 Fabricators . | . . . . . . . Repair Stations 4 | . 2 . . . 2 . Recycling Units 14 | . 7 . . . 7 . Scanalyzers . | . . . . . . . Garrison Access 2 | . . . . . 2 . Terminal Hacks 20 | . 7 . 2 . 11 . Record 1 | . . . 1 . . . Part Schematic 3 | . 2 . . . 1 . Robot Schematic 1 | . 1 . . . . . Robot Analysis 4 | . 2 . . . 2 . Alert Level 1 | . . . . . 1 . Unreport Threat 2 | . . . . . 2 . Locate Traps 2 | . 1 . . . 1 . Hauler Manifests 2 | . . . . . 2 . Zone Layout 3 | . 1 . . . 2 . Derelict Proto ID Bank 1 | . . . 1 . . . Fabricator Hacks . | . . . . . . . Repair Station Hacks 4 | . 2 . . . 2 . Scan Component 2 | . 1 . . . 1 . Repair 2 | . 1 . . . 1 . Recycling Unit Hacks 4 | . 2 . . . 2 . Retrieve Components 4 | . 2 . . . 2 . Scanalyzer . | . . . . . . . Garrison Access Hacks 1 | . . . . . 1 . Unlock Access 1 | . . . . . 1 . Unauthorized Hacks 10 | . 7 . . . 3 . Terminals 6 | . 4 . . . 2 . Assimilate 1 | . 1 . . . . . Botnet 5 | . 3 . . . 2 . Fabricators . | . . . . . . . Repair Stations . | . . . . . . . Recycling Units 4 | . 3 . . . 1 . Reject 1 | . 1 . . . . . Mask 1 | . 1 . . . . . Tunnel 2 | . 1 . . . 1 . Scanalyzers . | . . . . . . . Garrison Access . | . . . . . . . Data Cores Recovered 2 | . . . . . 2 . Used 1 | . . . . . 1 . Hacking Detections 17 | . 7 . . . 9 1 Full Trace Events 1 | . 1 . . . . . Feedback Events . | . . . . . . . Feedback Blocked . | . . . . . . . Robot Schematics Acquired 1 | . 1 . . . . . Robots Built . | . . . . . . . Authchips . | . . . . . . . Time . | . . . . . . . Total Robot Build Rating . | . . . . . . . Part Schematics Acquired 3 | . 2 . . . 1 . Parts Built . | . . . . . . . Authchips . | . . . . . . . Time . | . . . . . . . Total Part Build Rating . | . . . . . . . Parts Repaired 2 | . 1 . . . 1 . Time 64 | . 32 . . . 32 . Parts Recycled . | . . . . . . . Recycled Matter . | . . . . . . . Retrieved Matter . | . . . . . . . Retrieved Components 29 | . 10 . . . 19 . Parts Scanalyzed . | . . . . . . . Part Schematics Acquired . | . . . . . . . Parts Damaged . | . . . . . . . Bothacking | -11 -10 -10 -10 -9 -8 -8 ------------ Run | Yrd Mat Min Exi Min Mat Gar Used RIF Installer . | . . . . . . . Robots Hacked . | . . . . . . . Non-combat . | . . . . . . . Combat . | . . . . . . . Robot Hacks Applied . | . . . . . . . Relay Couplers Released 5 | . . . . . . 5 Machine Destruction 5 | . . . . . . 5 Fabnet Peak Effective % . | . . . . . . . Robots Rewired . | . . . . . . . Allies Hacked . | . . . . . . . Hacks Repelled . | . . . . . . . Allies | -11 -10 -10 -10 -9 -8 -8 -------- Run | Yrd Mat Min Exi Min Mat Gar Total Allies 4 | . 1 3 . . . . Largest Group 3 | . 1 3 1 1 . . Highest-Rated Group 40 | . 10 40 16 16 . . Highest-Rated Ally 16 | . 10 16 16 16 . . Total Orders . | . . . . . . . Ally Attacks 34 | . . 29 . 5 . . Total Damage 346 | . . 313 . 33 . . Kills 7 | . . 6 . 1 . . Allies Corrupted . | . . . . . . . Allies Melted . | . . . . . . . Intel | -11 -10 -10 -10 -9 -8 -8 ------- Run | Yrd Mat Min Exi Min Mat Gar Robot Analysis Total 4 | . 2 . . . 2 . Derelict Logs Recovered 2 | . . 1 . 1 . . Drone Launches . | . . . . . . . Drone Recoveries . | . . . . . . . Exploration | -11 -10 -10 -10 -9 -8 -8 ------------- Run | Yrd Mat Min Exi Min Mat Gar Turns Passed 10084 | 90 2128 1796 992 355 4074 649 Spaces Moved 3851 | 50 854 729 413 138 1440 227 Core 3 | 3 . . . . . . Treads 3848 | 47 854 729 413 138 1440 227 Legs . | . . . . . . . Wheels . | . . . . . . . Hover . | . . . . . . . Flight . | . . . . . . . Fastest Speed 50 | 50 160 240 240 240 235 232 Average Speed 233 | 154 215 240 240 240 239 239 Slowest Speed 400 | 160 400 240 240 240 240 240 Overloaded Moves . | . . . . . . . Propulsion Burnouts . | . . . . . . . Robots Hopped . | . . . . . . . Cave-ins Triggered . | . . . . . . . Exploration Rate (%) 58 | 5 92 98 89 27 83 18 Regions Visited 6 Branch Regions 3 Pre-discovered Areas 3 | . 1 . 1 . 1 . Known Exits Taken 1 | . . . . . 1 . Unknown Exits Taken 5 | 1 1 1 1 1 . . Scrap Searched 5 | . . 3 . 2 . . Spaces Dug . | . . . . . . . Terrain Destroyed 46 | . . . . . 38 8 Melee . | . . . . . . . Projectile 12 | . . . . . 11 1 AOE 34 | . . . . . 27 7 Terrain Rammed . | . . . . . . . Walls Destroyed . | . . . . . . . Machines Disabled . | . . . . . . . Actions | -11 -10 -10 -10 -9 -8 -8 --------- Run | Yrd Mat Min Exi Min Mat Gar Total 4556 | 60 1018 762 415 149 1871 281 Wait 317 | 3 71 20 . 2 210 11 Move 3846 | 49 853 728 412 137 1440 227 Hop . | . . . . . . . Pick Up 49 | 2 11 3 2 2 26 3 Fast Attach 35 | 6 7 1 . . 21 . Attach 16 | . 1 . . . 9 6 Detach 6 | . 1 1 . . 4 . Swap 21 | . 5 2 . . 11 3 Drop 47 | . 1 . 1 1 44 . Fire 197 | . 64 6 . 7 91 29 Melee . | . . . . . . . Ram . | . . . . . . . Kick . | . . . . . . . Crush 20 | . 4 1 . . 15 . Escape Stasis 2 | . . . . . . 2 Rewire . | . . . . . . . Trap . | . . . . . . . Miscellaneous . | . . . . . . . Route ------- -11/Scrapyard -10/Materials (discovered 5 exits: [*Mat x3] / [*Min x2]) -10/Mines (discovered 3 exits: [*Mat x2] / *Exi) -10/Exiles -9/Mines -8/Materials (discovered 3 exits: [*Fac x2] / Gar) -8/Garrison History --------- Turn | Location | Event 42 | -11/Scrapyard | Discovered new exit (range 15) 91 | -11/Scrapyard | Entered Materials 267 | -10/Materials | Discovered new exit (range 9) 312 | -10/Materials | Build established: Mutant 777 | -10/Materials | Discovered new exit (range 7) 873 | -10/Materials | Discovered new exit (range 15) 997 | -10/Materials | Core integrity fell below 50% 1372 | -10/Materials | Repaired Imp. Treads 1585 | -10/Materials | Discovered new exit (range 11) 1862 | -10/Materials | Discovered new exit (range 8) 2219 | -10/Materials | Entered Mines 2288 | -10/Mines | Assisted by bots powering up and referring to "LRC-V3" 2433 | -10/Mines | Discovered new exit (range 12) 2571 | -10/Mines | Deemed a non-threat by the Exiles lab entrance 2571 | -10/Mines | Discovered new exit (range 5) 3137 | -10/Mines | Learned Materials emergency access door positions 3184 | -10/Mines | Discovered new exit (range 6) 3516 | -10/Mines | Build established: Scavenger-Mutant 3752 | -10/Mines | Found a hidden stash of uninstalled traps 4015 | -10/Mines | Entered Exiles 4015 | -10/Exiles | Accompanied by 1 ally 4073 | -10/Exiles | Met 8R-AWN 4114 | -10/Exiles | Met EX-HEX 4181 | -10/Exiles | Met EX-BIN 4210 | -10/Exiles | Aligned with FarCom system 4212 | -10/Exiles | Given EX-Vault access code 4270 | -10/Exiles | Opened EX-Vault 4301 | -10/Exiles | Found Field Lobotomy Kit 4312 | -10/Exiles | Found Modified TNC 4368 | -10/Exiles | Warned to stay clear of 0b10 Research branches 4443 | -10/Exiles | Met EX-DEC 4460 | -10/Exiles | Learned location of Zion (-6) 4578 | -10/Exiles | Visited The Gauntlet 4980 | -10/Exiles | Discovered new exit (range 14) 5007 | -10/Exiles | Left Exiles lab with Modified TNC 5007 | -10/Exiles | Entered Mines 5007 | -9/Mines | Accompanied by 1 ally 5166 | -9/Mines | Assembled infested the area 5171 | -9/Mines | Assisted by a Guerilla fighting off Assembled 5288 | -9/Mines | Learned Materials stockpile data 5302 | -9/Mines | Discovered new exit (range 8) 5362 | -9/Mines | Entered Materials 5362 | -8/Materials | Evolved 4 slots: Propulsion x1, Utility x3 6081 | -8/Materials | Build established: Mutant 7323 | -8/Materials | Discovered new exit (range 4) 7439 | -8/Materials | Central database locked down 7586 | -8/Materials | Repaired Hrd. Light Armor Plating 8601 | -8/Materials | Discovered new exit (range 8) 8643 | -8/Materials | Lost 3 parts (1p1n1u) 9436 | -8/Materials | Identified exit to Garrison 9436 | -8/Materials | Entered Garrison 9702 | -8/Garrison | Triggered checkpoint 9849 | -8/Garrison | Garrison Relay disabled 9960 | -8/Garrison | Triggered checkpoint 10039 | -8/Garrison | System corruption reached 10% 10042 | -8/Garrison | Core integrity fell below 50% 10066 | -8/Garrison | Core integrity fell below 20% 10085 | -8/Garrison | Destroyed by P-60 Hacker with Shock Rifle Last Messages --------------- 10033_ Hrd. Medium Armor Plating destroyed. 10036_ P-60 Hacker resets P-60 Hacker, system corruption cleaned. 10036_ Hrd. Medium Armor Plating destroyed. 10039_ Imp. Heat Sink melted. 10039_ P-60 Hacker destroyed. 10044_ Med. Treads destroyed. 10045_ System corrupted: Matter fused (-9). 10045_ Med. Treads destroyed. 10051_ Lgt. Nuclear Core destroyed. 10053_ Adv. Heat Sink destroyed. 10062_ System corrupted: Hvy. Particle Gun rejected. 10064_ System corrupted: Hvy. Particle Gun failed to cycle. 10066_ P-60 Hacker destroyed. 10076_ Lgt. Armor Plating destroyed. 10076_ Hvy. Particle Gun destroyed. 10080_ P-60 Hacker destroyed. 10085_ System corrupted: Matter fused (-10). Map ----- +----------------------------------------------------+ | ?????????????????????????????????????????????????? | | ?????????????????????????????????????????????????? | | ?????????????????????????????????????????????????? | | ?????????????????????????????????????????????????? | | ?????????????????????????????????????????????????? | | ????????#????????????????????????????????????????? | | ???????## ???????????????????????????????????????? | | ??? ?? ???????????????????????????????????????? | | ? ??? ???????????????????????????????????????? | | ?? ?? ???????????????????????????????????????? | | ??# ?# ??????????????????????????????????????? | | ??# ## ??????????????????????????????????????? | | ?? ??????????????????????????????????????? | | ??? ??????????????????????????????????????? | | ????? ?????????????????????????????????????? | | ??????? ?????????????????????????????????????? | | ??# ????# ?????????????????????????????????????? | | ## ## ###########??????????????????????????? | | #??????????????????????????? | | #??????????????????????????? | | ######## #??????????????????????????? | | ###""""#####??# #??# #############??????????????? | | ??????????????# #?## " ^ ???????? | | ??????????????# #?#" "####### ???????? | | ?????????# #### ###[%==######??????? ???????? | | ?????????# |%[p[@[%#????????????????????? | | ?????????###### ##;;%[|####!#????????????????????? | | ??????????????# # ##=%##?????????????????????????? | | ??????????????# #??#*=#??????????????????????????? | | ??????????????# #??#[ #??????????????????????????? | | ???????????######### =#??????????????????????????? | | ???????????# #??????????????????????????? | | ???????????# ###T### ############???????????????? | | ???????????#*#?###?# p #???????????????? | | ???????????#[###???# #???????????????? | | ???????????# %[#####"######### #???????????????? | | ???????????# %*" #???????# #???????????????? | | ???????????# %=#######???????#####???????????????? | | ???????????#=###?????????????????????????????????? | | ???????????#=#???????????????????????????????????? | | ???????????# #???????????????????????????????????? | | ???????????# #???????????????????????????????????? | | ?????????### #???????????????????????????????????? | | ?????????#"#!#???????????????????????????????????? | | ?????????# #???????????????????????????????????? | | ?????????# !#???????????????????????????????????? | | ?????????#" ^#???????????????????????????????????? | | ?????????#"#^#???????????????????????????????????? | | ?????????#####???????????????????????????????????? | | ?????????????????????????????????????????????????? | +----------------------------------------------------+ Best States ------------- Heat Dissipation 69 Energy Generation 14 Energy Capacity 250 Matter Stores 300 Matter Capacity 300 Sight Range 16 Terrain Scan Density 10 Armor Coverage 600 Evasion (%) 40 Recoil Reduction 3 Offensive Hacking 10 Item Schematics ----------------- ECM Suite | -10/Materials | Hacked Structural Scanner | -10/Materials | Hacked Imp. Flight Unit | -8/Materials | Hacked Robot Schematics ------------------ M-13 Machinist | -10/Materials | Hacked Fabricated ------------ Nothing Alien Tech Used ----------------- None Achievements -------------- None Challenges ------------ None Game ------ Seed FieldNeutrinoTorch Manual? 0 Play Time 00:53:03 Cumulative 156.0 hours Start 2024.11.14 @ 19:16:31 End 2024.11.14 @ 20:15:12 Sessions 1 Manual Loads 0 Difficulty Rogue Special Mode None Game No. 80 Rogue 17 Adventurer 63 Explorer 0 Win Type - Total 7 Types 7/0/0/0/0/0/0/0/0 Lore% 68 Gallery% 67 Achievement% 54 Wizard Run 0 Options --------- Layout 1 ASCII 0 Keyboard 1 Movement Numpad Keybinds 0 Fullscreen 2 Font 24/Terminus Map View 50x35 Zoom Use 0% Tactical HUD 1 Map Filters NONE Filters NONE Steam 1 RUN: 98462167-d2f7-4f21-9af3-d296c8237dbb